bitfinex-derivatives/quotes_ETHF0:USTF0_20241207
["timestamp","ask_amount","ask_price","bid_price","bid_amount"]
[1733549020945,0.17492,3995.8,3995.7,6.92620083]
[1733549021246,0.17492,3995.8,3995.7,1.07589548]
[1733549021635,0.4065,3996.3,3995.7,0.90096548]
[1733549021841,0.17492,3995.8,3995.7,1.07589548]
[1733549022140,0.17492,3995.8,3995.7,6.77004085]
[1733549022344,0.17492,3995.8,3995.7,0.90096548]
[1733549022640,0.17492,3995.8,3995.7,1.07589548]
[1733549022843,0.17492,3995.8,3995.7,6.94748426]
[1733549023039,0.17492,3995.8,3995.7,5.87158878]
[1733549023347,0.17492,3995.8,3995.7,3.91441594]
[1733549025048,0.17493,3995.7,3995.6,6.04651878]
[1733549025340,0.1749,3996.4,3996.3,0.1749]
[1733549025541,0.17491,3996.3,3996.2,8.19615715]
[1733549025737,0.17491,3996.3,3996.2,4.98835715]
[1733549025944,0.379,3996.6,3996.1,5.86872251]
[1733549026140,0.17489,3996.5,3996.1,3.91236535]
[1733549026447,0.17491,3996.2,3996.1,3.91236535]
[1733549026749,0.81624,3996.6,3996.0,3.91236535]
[1733549026945,0.17492,3996.0,3995.9,3.91236535]
[1733549027148,0.17492,3996.0,3995.9,3.91320441]
[1733549027848,0.3998,3996.3,3995.9,3.91362166]
[1733549028053,0.17492,3996.0,3995.9,3.91362166]
[1733549030449,0.3998,3996.3,3995.9,3.91458779]
[1733549030650,0.57471,3996.3,3996.2,3.91458779]
[1733549030952,0.5747,3996.3,3996.2,3.91365086]
[1733549031146,0.3998,3996.3,3996.2,5.86872251]
[1733549031350,0.5747,3996.3,3996.2,5.86872251]
[1733549031954,0.5747,3996.3,3996.2,6.27442251]
[1733549032656,0.5747,3996.3,3996.2,6.44933251]
[1733549032855,0.5747,3996.3,3996.2,6.27442251]
[1733549033556,0.5747,3996.3,3996.2,0.4057]
[1733549033855,0.5747,3996.3,3996.2,0.58061]
[1733549034050,0.5747,3996.3,3996.2,0.4057]
[1733549047350,0.1749,3996.3,3996.2,0.4057]
[1733549047861,0.1749,3996.3,3996.2,6.27831078]
[1733549048061,0.7742,3996.6,3996.3,0.1749]
[1733549048263,0.1749,3996.5,3996.4,6.04604446]
[1733549049166,0.1749,3996.5,3996.4,6.04560158]
[1733549049461,0.1749,3996.5,3996.4,5.87071158]
[1733549049857,0.1749,3996.4,3996.3,5.87071158]
[1733549050054,0.9799,3996.4,3996.3,5.87071158]
[1733549051762,0.9799,3996.4,3996.3,6.04561158]
[1733549051960,0.9799,3996.4,3996.3,5.87071158]
[1733549053354,0.9799,3996.4,3996.3,7.83364849]
[1733549055962,0.805,3996.4,3996.2,8.41425849]
[1733549056164,0.1749,3996.3,3996.2,0.4057]
[1733549056360,0.1749,3996.3,3996.2,8.23686008]
[1733549057661,0.1749,3996.3,3996.2,8.41177008]
[1733549058162,0.1749,3996.3,3996.2,8.23686008]
[1733549058669,0.1749,3996.3,3996.2,8.41177008]
[1733549060478,0.1749,3996.3,3996.2,8.23686008]
[1733549060771,0.1749,3996.3,3996.2,8.41177008]
[1733549060974,0.1749,3996.3,3996.2,8.23686008]
[1733549062065,0.1749,3996.3,3996.2,8.41177008]
[1733549062463,0.1749,3996.3,3996.2,8.41063632]
[1733549062664,0.1749,3996.3,3996.2,8.23572632]
[1733549062871,0.1749,3996.3,3996.2,0.58061]
[1733549063274,0.1749,3996.3,3996.2,7.82980834]
[1733549063462,0.1749,3996.3,3996.1,3.2078]
[1733549063463,0.17491,3996.2,3996.1,11.03760834]
[1733549064672,0.17491,3996.2,3996.1,3.2078]
[1733549065771,0.17491,3996.2,3996.1,9.08141461]
[1733549068575,0.17491,3996.2,3996.1,7.12247593]
[1733549072180,3.11871237,3996.2,3996.1,7.12247593]
[1733549072376,0.17491,3996.2,3996.1,7.12247593]
[1733549073582,3.11871237,3996.2,3996.1,7.12247593]
[1733549075679,0.17491,3996.2,3996.1,9.08141461]
[1733549076077,1.07587548,3996.2,3996.1,3.2078]
[1733549076475,1.07587548,3996.2,3996.1,3.91693001]
[1733549078277,1.07587548,3996.2,3996.0,3.91693001]
[1733549078487,0.17491,3996.1,3996.0,3.91693001]
[1733549078983,0.90096548,3996.2,3995.9,5.87361461]
[1733549078984,0.17492,3996.0,3995.9,5.87361461]
[1733549079381,0.17492,3995.9,3995.8,5.87361461]
[1733549079586,0.55412,3995.9,3995.8,5.87361461]
[1733549079782,0.55412,3995.9,3995.6,11.42190834]
[1733549079783,0.17493,3995.7,3995.6,11.42190834]
[1733549080280,0.17493,3995.7,3995.6,3.5921]
[1733549080482,0.17493,3995.7,3995.6,9.08276632]
[1733549080786,0.17493,3995.7,3995.6,5.87496632]
[1733549082280,0.4081,3995.8,3995.5,5.87496632]
[1733549082588,0.17493,3995.6,3995.5,5.87496632]
[1733549083184,0.17494,3995.5,3995.4,6.27456632]
[1733549083585,0.17494,3995.5,3995.4,0.57454]
[1733549084188,0.4081,3995.8,3995.4,6.27392956]
[1733549084384,0.17493,3995.7,3995.6,3.91579298]
[1733549084590,2.94380237,3996.3,3995.6,10.64909504]
[1733549084893,7.12557283,3996.6,3996.1,0.90096548]
[1733549084894,0.17491,3996.2,3996.1,0.90096548]
[1733549085089,0.17491,3996.2,3996.1,5.20493802]
[1733549085387,0.17491,3996.2,3996.1,1.28996548]
[1733549085586,0.17491,3996.2,3996.1,4.30397254]
[1733549085887,0.17491,3996.2,3996.1,0.389]
[1733549086493,0.17491,3996.2,3996.1,4.30386244]
[1733549086985,0.17491,3996.2,3996.1,0.389]
[1733549087288,0.17491,3996.2,3996.1,3.77171]
[1733549087486,0.17491,3996.2,3996.1,3.5968]
[1733549087891,0.17491,3996.2,3996.1,9.46925882]
[1733549090890,0.17491,3996.2,3996.1,3.5968]
[1733549091089,0.17491,3996.2,3996.1,11.42660834]
[1733549091383,0.17491,3996.2,3996.1,11.60151834]
[1733549092390,0.17491,3996.2,3996.1,11.42660834]
[1733549092588,0.17491,3996.2,3996.1,3.5968]
[1733549093792,0.17491,3996.2,3996.1,9.46842552]
[1733549094092,0.17491,3996.2,3996.1,3.5968]
[1733549097698,0.17491,3996.2,3996.1,3.77171]
[1733549098087,0.17491,3996.2,3996.1,3.5968]
[1733549098790,0.17491,3996.2,3996.1,9.64346087]
[1733549099191,0.17491,3996.2,3996.1,9.46855087]
[1733549100589,0.17491,3996.2,3996.1,3.5968]
[1733549100992,0.3953,3996.5,3996.1,4.49776548]
[1733549101192,0.17491,3996.2,3996.1,4.67267548]
[1733549101394,0.17491,3996.2,3996.1,10.54442635]
[1733549102092,0.17491,3996.2,3996.1,9.64346087]
[1733549104094,0.17491,3996.2,3996.1,9.46855087]
[1733549104303,0.17491,3996.2,3996.1,3.5968]
[1733549106001,1.07587548,3996.2,3996.1,3.2078]
[1733549106296,1.07587548,3996.2,3996.1,5.87254469]
[1733549110394,0.90096548,3996.2,3996.0,5.87254469]
[1733549110598,0.17492,3996.0,3995.9,0.17492]
[1733549111398,0.17492,3996.0,3995.9,8.00472834]
[1733549111590,0.17492,3996.0,3995.9,7.82980834]
[1733549111793,0.17492,3996.0,3995.9,8.00472834]
[1733549111988,0.17492,3995.8,3995.7,11.21253834]
[1733549113298,0.17492,3995.8,3995.7,3.38273]
[1733549113603,0.17492,3995.9,3995.8,0.17492]
[1733549113795,0.17492,3995.9,3995.8,6.04465635]
[1733549113996,0.17492,3995.9,3995.8,0.17492]
[1733549114198,0.17492,3995.9,3995.8,6.0445009]
[1733549114402,0.17492,3995.9,3995.8,5.8695809]
[1733549118704,0.17492,3995.9,3995.7,3.2078]
[1733549118902,0.17491,3995.9,3995.8,0.17491]
[1733549119802,0.7966,3996.1,3995.8,0.17491]
[1733549120102,0.7966,3996.1,3995.8,6.04384095]
[1733549120406,0.7966,3996.1,3995.8,0.17491]
[1733549120407,0.17491,3995.9,3995.8,0.17491]
[1733549120809,0.17491,3995.9,3995.8,8.00126383]
[1733549123310,0.17491,3996.0,3995.9,0.17491]
[1733549123702,0.17491,3996.0,3995.9,8.00126383]
[1733549124706,0.3864,3996.1,3995.9,7.82635383]
[1733549125007,0.5613,3996.1,3996.0,8.00125383]
[1733549125210,0.5613,3996.1,3996.0,7.82635383]
[1733549125904,0.5613,3996.1,3996.0,8.00125383]
[1733549126097,0.5613,3996.1,3996.0,7.82635383]
[1733549127803,0.5613,3996.1,3996.0,11.03415383]
[1733549128309,0.5613,3996.1,3996.0,3.3827]
[1733549128534,0.5613,3996.1,3996.0,3.2078]
[1733549129114,0.5613,3996.1,3996.0,11.21021218]
[1733549129316,0.5613,3996.1,3996.0,3.3827]
[1733549131515,0.5613,3996.1,3996.0,3.38271]
[1733549131709,0.5613,3996.1,3996.0,3.2078]
[1733549132018,0.5613,3996.1,3996.0,3.38271]
[1733549132811,0.5613,3996.1,3996.0,3.3827]
[1733549136307,0.5613,3996.1,3996.0,3.2078]
[1733549136506,0.5613,3996.1,3996.0,3.3827]
[1733549139919,0.5613,3996.1,3996.0,11.21498909]
[1733549140616,0.5613,3996.1,3996.0,3.3827]
[1733549142312,0.5613,3996.1,3996.0,3.2078]
[1733549142812,0.5613,3996.1,3996.0,3.38271]
[1733549143007,0.5613,3996.1,3996.0,3.2078]
[1733549143918,0.1749,3996.2,3996.1,0.1749]
[1733549144112,0.1749,3996.2,3996.1,1.1937]
[1733549147315,0.8134,3996.5,3996.1,1.1937]
[1733549147515,0.3904,3996.8,3996.6,0.17487]
[1733549147815,0.3904,3996.8,3996.4,4.10876548]
[1733549147816,2.94380237,3997.2,3996.7,0.90096548]
[1733549148021,0.55534,3997.4,3997.3,0.17485]
[1733549149016,0.17485,3997.3,3997.2,0.17485]
[1733549149417,0.17485,3997.3,3997.1,11.93597945]
[1733549149614,0.17485,3997.3,3997.1,4.28361548]
[1733549150218,0.17485,3997.3,3997.2,0.17485]
[1733549150619,0.17485,3997.3,3997.2,6.03533739]
[1733549151525,0.3805,3997.4,3997.1,9.96925287]
[1733549151728,0.55535,3997.4,3997.3,3.9059202]
[1733549153224,0.17485,3997.3,3997.2,3.9059202]
[1733549153920,0.17485,3997.3,3997.2,4.0807702]
[1733549154425,0.17485,3997.3,3997.2,3.9059202]
[1733549154625,0.3871,3997.8,3997.2,3.9059202]
[1733549154925,0.3871,3997.8,3997.1,4.10876548]
[1733549154926,0.57903,3997.9,3997.8,0.17483]
[1733549155122,3.2078,3998.7,3997.8,0.90096548]
[1733549155123,0.4109,3998.3,3997.8,0.90096548]
[1733549155422,0.17481,3998.2,3998.0,4.07573648]
[1733549155619,0.17481,3998.2,3998.0,0.17482]
[1733549155819,0.4109,3998.3,3997.9,3.90091648]
[1733549156019,0.17481,3998.2,3998.0,0.17482]
[1733549157522,0.8045,3998.5,3998.1,0.90096548]
[1733549157718,0.8045,3998.5,3998.4,0.90096548]
[1733549157919,0.9793,3998.5,3998.4,4.10876548]
[1733549158318,0.8045,3998.5,3998.4,4.69556548]
[1733549158824,0.4137,3998.9,3998.4,4.52076548]
[1733549159023,0.4137,3998.9,3998.6,0.17479]
[1733549159228,0.4137,3998.9,3998.4,4.52076548]
[1733549159431,0.17479,3998.7,3998.5,0.17479]
[1733549160130,0.4137,3998.9,3998.4,3.6198]
[1733549160321,0.4137,3998.9,3998.5,0.90096548]
[1733549160523,0.17479,3998.6,3998.5,0.90096548]
[1733549160924,0.17479,3998.7,3998.5,1.07575548]
[1733549161927,0.17478,3998.8,3998.5,0.90096548]
[1733549162833,0.17478,3998.8,3998.5,1.07576548]
[1733549163434,0.4137,3998.9,3998.5,1.07576548]
[1733549163435,0.58848,3998.9,3998.5,1.07576548]
[1733549163622,0.8234,3999.2,3998.6,0.17479]
[1733549163827,0.17478,3999.0,3998.6,0.17479]
[1733549164230,0.17478,3999.0,3998.7,0.17479]
[1733549164631,0.17478,3999.0,3998.5,0.90096548]
[1733549164833,0.17478,3999.0,3998.6,0.17479]
[1733549165531,0.8234,3999.2,3998.6,0.17479]
[1733549165731,0.17478,3998.9,3998.6,0.17479]
[1733549165934,0.17478,3998.8,3998.5,1.07575548]
[1733549166429,0.17479,3998.7,3998.5,1.07575548]
[1733549166730,0.17478,3999.0,3998.5,0.90096548]
[1733549166935,0.17478,3999.0,3998.7,0.17479]
[1733549167333,0.8234,3999.2,3998.4,3.6198]
[1733549167334,0.8234,3999.2,3998.8,0.90096548]
[1733549167532,3.2078,3999.5,3999.1,0.90096548]
[1733549167741,3.2078,3999.5,3999.2,0.3747]
[1733549167742,0.17476,3999.3,3999.2,0.3747]
[1733549169339,0.3994,3999.4,3999.2,0.3747]
[1733549169638,0.3994,3999.4,3999.3,0.17476]
[1733549171135,0.3994,3999.4,3999.2,0.7644]
[1733549171439,0.3994,3999.4,3999.3,0.17476]
[1733549171834,0.3994,3999.4,3999.2,0.7644]
[1733549171835,0.17476,3999.3,3999.2,0.7644]
[1733549172740,0.57416,3999.4,3999.2,0.54947]
[1733549174229,0.17477,3999.3,3999.2,0.54947]
[1733549174435,0.57416,3999.4,3999.3,0.17477]
[1733549174629,0.57416,3999.4,3999.2,0.3747]
[1733549175138,0.3963,3999.7,3999.3,0.17477]
[1733549175338,0.17476,3999.5,3999.2,0.3747]
[1733549175531,0.17476,3999.5,3999.4,0.90096548]
[1733549175839,0.3963,3999.7,3999.4,1.07572548]
[1733549176034,0.57105,3999.7,3999.6,0.17475]
[1733549176241,0.3963,3999.7,3999.6,0.17475]
[1733549176738,0.57105,3999.7,3999.5,0.17475]
[1733549176934,0.57105,3999.7,3999.4,0.90096548]
[1733549176935,0.17476,3999.6,3999.4,0.90096548]
[1733549177241,0.3963,3999.7,3999.4,1.07572548]
[1733549177433,0.17476,3999.5,3999.4,0.90096548]
[1733549179334,0.17476,3999.5,3999.4,1.07572548]
[1733549179937,0.17476,3999.6,3999.4,1.07572548]
[1733549180138,3.2078,4000.4,3999.5,4.77376548]
[1733549180441,0.4089,4000.3,4000.1,0.90096548]
[1733549180642,0.4089,4000.3,4000.2,1.0691]
[1733549180846,3.2078,4000.4,4000.2,1.0691]
[1733549181138,3.2078,4000.4,4000.3,0.17472]
[1733549181339,0.4107,4000.6,4000.3,0.17472]
[1733549181645,0.4107,4000.6,4000.5,0.90096548]
[1733549183639,0.4045,4001.2,4000.5,1.80193096]
[1733549183840,0.4045,4001.2,4001.1,0.90096548]
[1733549184239,0.4045,4001.2,4001.1,1.07565548]
[1733549184741,0.4045,4001.2,4001.1,0.90096548]
[1733549186439,0.57917,4001.2,4001.1,0.90096548]
[1733549187446,0.4045,4001.2,4001.1,0.90096548]
[1733549189843,0.57917,4001.2,4001.1,0.90096548]
[1733549192554,0.17465,4001.6,4001.1,1.07563548]
[1733549192843,0.17467,4001.4,4001.1,1.28436548]
[1733549193051,0.17467,4001.3,4001.1,1.28436548]
[1733549193252,0.95416,4001.6,4001.2,0.17467]
[1733549193553,0.87295,4003.2,4001.1,1.28436548]
[1733549193554,3.2078,4002.2,4001.5,0.90096548]
[1733549193753,0.56023,4002.1,4001.7,0.17465]
[1733549194052,0.17464,4002.0,4001.7,0.17465]
[1733549194350,0.17464,4002.0,4001.3,0.664]
[1733549194555,0.17464,4002.0,4001.9,0.90096548]
[1733549194750,0.17465,4001.7,4001.6,0.90096548]
[1733549195849,0.17464,4002.0,4001.7,0.17465]
[1733549196056,0.58064,4002.0,4001.9,0.90096548]
[1733549196651,0.58064,4002.0,4001.4,0.664]
[1733549196652,0.17464,4001.9,4001.8,1.94594128]
[1733549200864,0.406,4002.0,4001.4,1.94594128]
[1733549201165,0.17466,4001.5,4001.4,1.94594128]
[1733549201967,0.17466,4001.5,4001.4,2.32744128]
[1733549202663,0.17466,4001.6,4001.4,2.50210128]
[1733549202865,0.17466,4001.6,4001.5,0.17466]
[1733549203067,0.17466,4001.6,4001.4,2.50210128]
[1733549203260,0.17466,4001.5,4001.4,2.32744128]
[1733549205566,0.406,4002.0,4001.4,2.32744128]
[1733549205766,0.406,4002.0,4001.5,0.17466]
[1733549205965,0.17465,4001.6,4001.5,0.17466]
[1733549206266,0.17465,4001.6,4001.4,2.32744128]
[1733549206458,0.406,4002.0,4001.4,2.50210128]
[1733549206659,0.17466,4001.5,4001.4,1.94594128]
[1733549207362,0.17466,4001.5,4001.4,2.60994128]
[1733549208063,0.17466,4001.5,4001.4,1.94594128]
[1733549209364,3.2078,4001.6,4001.0,5.15374128]
[1733549209568,0.17468,4001.1,4001.0,5.15374128]
[1733549212269,0.17468,4001.1,4001.0,3.2078]
[1733549218272,0.3953,4001.3,4000.6,0.19793769]
[1733549218474,0.1747,4000.6,4000.5,3.2078]
[1733549218674,0.1747,4000.6,4000.5,4.10664998]
[1733549218872,0.1747,4000.6,4000.5,4.30416674]
[1733549221075,0.1747,4000.6,4000.5,4.10664998]
[1733549230083,0.4086,4000.7,4000.2,3.90091648]
[1733549230084,1.30744998,4000.7,4000.2,3.90091648]
[1733549230289,0.89884998,4000.4,3999.6,3.90091648]
[1733549230477,0.89884998,4000.1,3999.5,7.10871648]
[1733549230683,0.17474,3999.6,3999.5,7.10871648]
[1733549230877,0.17474,3999.6,3999.5,3.2078]
[1733549231785,0.17475,3999.4,3999.3,4.79976646]
[1733549231987,0.17475,3999.4,3999.3,3.90091648]
[1733549232179,0.17475,3999.4,3999.2,1.1693]
[1733549232180,0.3998,3999.5,3999.2,4.28151648]
[1733549232384,0.17475,3999.3,3999.2,4.28151648]
[1733549232584,0.17475,3999.3,3999.2,0.3806]
[1733549233189,0.3998,3999.5,3999.1,3.2078]
[1733549233388,0.58126,3999.2,3999.1,3.2078]
[1733549244193,0.17474,3999.8,3999.1,3.8718]
[1733549244401,0.17473,3999.8,3999.7,0.89884998]
[1733549244699,3.2078,4000.3,3999.7,0.89884998]
[1733549244897,0.17473,3999.9,3999.8,0.3957]
[1733549245993,3.5991,4000.3,3999.8,0.3957]
[1733549246187,3.38251,4000.3,4000.2,0.89884998]
[1733549246493,0.17472,4000.1,3999.9,1.27454998]
[1733549246892,0.17472,4000.0,3999.9,1.27454998]
[1733549247092,0.17472,4000.2,3999.9,1.44927998]
[1733549247298,0.17472,4000.1,3999.9,1.44927998]
[1733549247695,0.17472,4000.2,3999.9,1.44927998]
[1733549247899,0.17472,4000.1,3999.9,1.44927998]
[1733549248100,0.17472,4000.1,3999.9,1.27454998]
[1733549248896,0.17471,4000.3,4000.1,0.17472]
[1733549249194,3.6028,4000.9,4000.2,0.89884998]
[1733549249394,3.6028,4000.9,4000.3,0.3958]
[1733549249592,0.17471,4000.4,4000.3,0.3958]
[1733549253506,0.89884998,4000.6,4000.0,3.2078]
[1733549253704,0.17472,4000.1,4000.0,3.8718]
[1733549254097,0.3937,4000.5,3999.7,0.89884998]
[1733549254305,0.17473,3999.9,3999.6,4.77064998]
[1733549254505,0.7755,4000.0,3999.6,4.77064998]
[1733549254701,0.17474,3999.7,3999.6,4.10664998]
[1733549254900,0.17474,3999.7,3999.6,3.2078]
[1733549256009,0.17474,3999.6,3999.4,1.45089998]
[1733549256308,0.7755,4000.0,3999.4,1.27614998]
[1733549256508,0.7755,4000.0,3999.4,0.3773]
[1733549256509,0.17474,3999.6,3999.4,0.3773]
[1733549257005,0.17475,3999.5,3999.4,0.3773]
[1733549257197,0.17474,3999.6,3999.4,0.55205]
[1733549257394,0.17474,3999.8,3999.4,0.3773]
[1733549257602,0.17474,3999.8,3999.6,3.2078]
[1733549257804,0.17474,3999.7,3999.6,3.2078]
[1733549263411,0.7755,4000.0,3999.4,0.3773]
[1733549263607,0.17473,3999.8,3999.6,0.17474]
[1733549264512,0.17474,3999.7,3999.5,0.17475]
[1733549267110,0.17474,3999.6,3999.5,0.17475]
[1733549270309,0.17475,3999.5,3999.4,7.48601648]
[1733549270509,0.7755,4000.0,3999.4,3.75985]
[1733549270717,0.17474,3999.6,3999.4,3.75985]
[1733549271017,0.17474,3999.6,3999.5,3.90091648]
[1733549271613,0.17474,3999.6,3999.4,9.62033739]
[1733549272311,0.17474,3999.6,3999.5,0.17475]
[1733549272512,0.7755,4000.0,3999.5,0.17475]
[1733549272712,0.17474,3999.7,3999.6,3.90059619]
[1733549273012,0.7755,4000.0,3999.4,7.10839619]
[1733549273220,0.17475,3999.5,3999.4,7.10839619]
[1733549275513,0.17475,3999.5,3999.4,3.2078]
[1733549276218,0.17475,3999.5,3999.4,9.06828739]
[1733549278311,0.17475,3999.5,3999.4,3.2078]
[1733549278710,0.89934014,3999.9,3999.4,3.2078]
[1733549278911,0.17474,3999.6,3999.5,3.90296591]
[1733549279121,0.17475,3999.5,3999.4,3.2078]
[1733549279311,0.58805,3999.5,3999.4,3.2078]
[1733549283516,0.99815,3999.5,3999.4,3.2078]
[1733549285818,0.17475,3999.3,3999.2,3.90296591]
[1733549286015,0.17475,3999.3,3999.0,5.86048739]
[1733549286016,0.4124,3999.4,3999.0,5.86048739]
[1733549286220,1.48649014,3999.4,3999.3,3.90296591]
[1733549287419,1.31174014,3999.4,3999.2,3.90296591]
[1733549287716,1.48649014,3999.4,3999.3,3.90296591]
[1733549292212,0.17475,3999.3,3999.2,3.90296591]
[1733549293223,0.17475,3999.3,3999.2,3.90605093]
[1733549293524,0.17475,3999.3,3999.1,5.86048739]
[1733549293525,0.17476,3999.2,3999.1,5.86048739]
[1733549294625,0.3874,3999.8,3999.0,8.20301397]
[1733549294928,0.3874,3999.8,3999.3,0.89934014]
[1733549294929,0.17475,3999.4,3999.3,0.89934014]
[1733549295425,0.17475,3999.4,3999.3,1.27854014]
[1733549296325,0.17475,3999.4,3999.3,0.3792]
[1733549298430,0.17475,3999.4,3999.3,8.20641397]
[1733549301324,0.17475,3999.4,3999.3,6.2455781]
[1733549302931,0.17475,3999.4,3999.3,0.3792]
[1733549303119,0.17475,3999.4,3999.3,6.2455781]
[1733549303631,0.17475,3999.4,3999.3,0.3792]
[1733549303824,0.17475,3999.4,3999.3,6.2455781]
[1733549308227,0.17475,3999.4,3999.3,8.20641397]
[1733549313134,0.17475,3999.4,3999.3,7.82721397]
[1733549314428,1.72358014,3999.8,3999.2,3.2078]
[1733549314737,0.17474,3999.7,3999.6,5.86910751]
[1733549316228,1.28674014,3999.8,3999.5,3.91221194]
[1733549316433,3.12225361,3999.6,3999.5,3.91221194]
[1733549318935,0.17475,3999.5,3999.4,5.86910751]
[1733549321034,1.07409014,3999.5,3999.4,5.86910751]
[1733549321240,0.17475,3999.4,3999.3,5.86910751]
[1733549321538,0.17475,3999.4,3999.3,5.87008835]
[1733549323340,0.17475,3999.3,3999.2,3.2078]
[1733549323540,0.55655,3999.3,3999.2,3.2078]
[1733549324337,0.55655,3999.3,3999.2,12.96323586]
[1733549324537,0.55655,3999.3,3999.2,3.2078]
[1733549324837,0.55655,3999.3,3999.2,12.96323586]
[1733549325238,0.55655,3999.3,3999.2,3.2078]
[1733549325640,0.93865,3999.3,3999.2,12.96323586]
[1733549325845,0.93865,3999.3,3999.2,3.2078]
[1733549328333,0.93865,3999.3,3999.2,12.96323586]
[1733549328537,0.93865,3999.3,3999.2,3.2078]
[1733549329141,0.93865,3999.3,3999.2,12.96323586]
[1733549329343,0.93865,3999.3,3999.2,3.2078]
[1733549332537,0.93865,3999.3,3999.2,12.96323586]
[1733549332748,0.93865,3999.3,3999.2,9.75543586]
[1733549333038,0.93865,3999.3,3999.2,12.96323586]
[1733549334437,0.93865,3999.3,3999.2,3.2078]
[1733549335344,0.93865,3999.3,3999.2,12.96323586]
[1733549337243,0.93865,3999.3,3999.2,3.2078]
[1733549337448,0.93865,3999.3,3999.2,12.99440056]
[1733549337650,0.93865,3999.3,3999.2,3.2078]
[1733549338647,0.93865,3999.3,3999.2,11.03781804]
[1733549338648,0.7639,3999.3,3999.2,11.03781804]
[1733549339246,0.7639,3999.3,3999.2,3.2078]
[1733549340350,0.93865,3999.3,3999.2,3.2078]
[1733549340650,0.7639,3999.3,3999.2,3.38256]
[1733549341248,0.93865,3999.3,3999.2,3.2078]
[1733549341453,0.7639,3999.3,3999.2,3.2078]
[1733549341749,0.93865,3999.3,3999.2,3.2078]
[1733549342743,0.7639,3999.3,3999.2,3.38256]
[1733549343448,0.93865,3999.3,3999.2,3.2078]
[1733549343751,0.7639,3999.3,3999.2,3.38256]
[1733549344238,0.7639,3999.3,3999.2,3.2078]
[1733549344647,0.7639,3999.3,3999.2,3.38256]
[1733549344843,0.7639,3999.3,3999.2,3.2078]
[1733549346554,2.94751361,3999.7,3999.2,3.2078]
[1733549346754,0.17475,3999.4,3999.3,9.78807641]
[1733549349053,0.17475,3999.3,3999.2,12.99587641]
[1733549353256,0.17475,3999.3,3999.2,3.2078]
[1733549353451,0.17475,3999.3,3999.2,11.03843062]
[1733549356350,0.17475,3999.3,3999.2,3.2078]
[1733549356550,0.58085,3999.3,3999.2,3.2078]
[1733549357752,0.58085,3999.3,3999.1,7.83063062]
[1733549357753,0.17476,3999.2,3999.1,11.03843062]
[1733549359461,0.17476,3999.2,3999.1,3.2078]
[1733549360655,0.17476,3999.2,3999.1,11.03637786]
[1733549361561,0.17476,3999.2,3999.1,12.99587641]
[1733549361765,0.17476,3999.2,3999.1,3.2078]
[1733549361964,0.17476,3999.2,3999.1,12.99343816]
[1733549362159,0.17476,3999.2,3999.1,12.99337265]
[1733549368463,0.17476,3999.2,3999.1,3.2078]
[1733549368661,0.17476,3999.2,3999.1,11.03697082]
[1733549368866,0.17476,3999.2,3999.1,3.2078]
[1733549369072,0.17476,3999.2,3999.1,11.03670986]
[1733549369266,0.17476,3999.2,3999.1,3.2078]
[1733549371073,0.17476,3999.2,3999.1,11.03683744]
[1733549372689,0.17476,3999.2,3999.1,7.82903744]
[1733549373080,0.17476,3999.2,3999.1,11.03683744]
[1733549373883,0.17476,3999.2,3999.1,3.2078]
[1733549374283,0.17476,3999.2,3999.1,11.03696977]
[1733549376380,0.17476,3999.2,3999.1,11.03686694]
[1733549376679,0.17476,3999.2,3999.1,3.2078]
[1733549376988,0.17476,3999.3,3999.1,3.2078]
[1733549377288,0.17476,3999.3,3999.2,9.78568249]
[1733549381092,0.17476,3999.2,3999.1,3.2078]
[1733549382286,0.17476,3999.2,3999.1,12.99394835]
[1733549382487,0.17476,3999.2,3999.1,3.2078]
[1733549383793,0.17476,3999.2,3999.0,0.4109]
[1733549384092,0.17476,3999.2,3999.1,3.2078]
[1733549384897,0.17476,3999.2,3999.0,0.58567]
[1733549385089,0.17476,3999.2,3999.1,3.2078]
[1733549393400,0.17476,3999.2,3999.1,12.99442238]
[1733549394799,0.17476,3999.2,3999.1,3.38256]
[1733549395891,0.17476,3999.2,3999.1,3.2078]
[1733549396500,0.17476,3999.2,3999.1,11.03847763]
[1733549397004,0.55666,3999.2,3999.1,11.03828797]
[1733549397201,0.55666,3999.2,3999.1,11.03833685]
[1733549397401,0.94946,3999.2,3999.1,11.03833685]
[1733549397901,0.94946,3999.2,3999.1,19.47873199]
[1733549398204,0.94946,3999.2,3999.1,11.64830597]
[1733549398591,0.94946,3999.2,3999.0,7.83296406]
[1733549398592,4.79631375,3999.2,3999.0,7.83296406]
[1733549398798,1.84880014,3999.2,3999.1,5.87542129]
[1733549398996,4.88184014,3999.2,3998.7,7.83389506]
[1733549399197,0.17478,3998.7,3998.6,7.83389506]
[1733549399399,0.17479,3998.5,3998.4,7.83389506]
[1733549399703,0.17479,3998.4,3998.3,7.83389506]
[1733549399900,1.07413014,3998.4,3998.3,7.83389506]
[1733549400096,1.07413014,3998.4,3998.1,7.83389506]
[1733549400097,0.1748,3998.2,3998.1,7.83389506]
[1733549400399,0.17481,3998.1,3998.0,7.83389506]
[1733549400593,0.89934014,3998.1,3997.9,7.83389506]
[1733549400795,0.89934014,3998.1,3997.7,0.4003]
[1733549401000,1.07416014,3997.8,3997.7,0.4003]
[1733549401401,0.89934014,3997.8,3997.7,0.4003]
[1733549401897,2.95071068,3998.5,3997.7,0.4003]
[1733549402201,3.85005082,3998.8,3998.6,0.17479]
[1733549402502,3.85005082,3998.8,3998.7,1.1773]
[1733549402503,0.89934014,3998.8,3998.7,1.1773]
[1733549403093,1.07412014,3998.8,3998.7,0.787]
[1733549403308,0.17478,3998.7,3998.3,11.20984007]
[1733549403608,0.89934014,3998.5,3998.4,0.4054]
[1733549404408,0.17479,3998.4,3998.3,11.03504007]
[1733549404603,1.30324014,3998.5,3998.1,7.82724007]
[1733549404804,0.89934014,3998.2,3998.0,7.82724007]
[1733549405103,1.07414014,3998.2,3998.0,7.82724007]
[1733549405401,0.56991,3998.1,3998.0,7.82724007]
[1733549405601,0.3951,3998.1,3997.9,12.48304007]